lending/lending_fUSD_20250920
["ID","MTS","AMOUNT","RATE_DAILY","PERIOD"]
[386574826,1758406235743,-404.81845137,0.00024657,3]
[386574827,1758406235753,-400.0,0.00024657,3]
[386574828,1758406235763,-1253.18,0.00024657,3]
[386574829,1758406235774,-400.0,0.00024657,3]
[386574830,1758406235784,-468.6,0.00024657,3]
[386574831,1758406235794,-400.0,0.00024657,3]
[386574832,1758406235804,-400.0,0.00024657,3]
[386574833,1758406235814,-400.0,0.00024657,3]
[386574834,1758406235823,-400.0,0.00024657,3]
[386574835,1758406235833,-400.0,0.00024657,3]
[386574836,1758406235843,-417.38,0.00024657,3]
[386574837,1758406235853,-400.0,0.00024657,3]
[386574838,1758406235863,-400.0,0.00024657,3]
[386574839,1758406235873,-400.0,0.00024657,3]
[386574840,1758406235883,-400.0,0.00024657,3]
[386574841,1758406235893,-400.0,0.00024657,3]
[386574842,1758406235903,-951.87,0.00024657,3]
[386574843,1758406235913,-203.62515819,0.00024657,3]
[386574844,1758406235923,-791.23,0.00024657,3]
[386574845,1758406235933,-400.0,0.00024657,3]
[386574846,1758406235943,-400.0,0.00024657,3]
[386574847,1758406235952,-400.0,0.00024657,3]
[386574848,1758406235962,-400.0,0.00024657,3]
[386574849,1758406235972,-842.02,0.00024657,3]
[386574850,1758406235982,-400.0,0.00024657,3]
[386574851,1758406235992,-409.61,0.00024657,3]
[386574852,1758406236002,-400.0,0.00024657,3]
[386574853,1758406236011,-400.0,0.00024657,3]
[386574854,1758406236021,-400.0,0.00024657,3]
[386574855,1758406236031,-400.0,0.00024657,3]
[386574856,1758406236041,-400.0,0.00024657,3]
[386574857,1758406236051,-400.0,0.00024657,3]
[386574858,1758406236060,-400.0,0.00024657,3]
[386574859,1758406236070,-400.0,0.00024657,3]
[386574860,1758406236080,-400.0,0.00024657,3]
[386574861,1758406236090,-400.0,0.00024657,3]
[386574862,1758406236110,-400.0,0.00024657,3]
[386574863,1758406236120,-400.0,0.00024657,3]
[386574864,1758406236130,-641.97,0.00024657,3]
[386574865,1758406236140,-400.0,0.00024657,3]
[386574866,1758406236150,-400.0,0.00024657,3]
[386574867,1758406236160,-400.0,0.00024657,3]
[386574868,1758406236170,-400.0,0.00024657,3]
[386574869,1758406236180,-400.0,0.00024657,3]
[386574870,1758406236190,-400.0,0.00024657,3]
[386574871,1758406236200,-404.18,0.00024657,3]
[386574872,1758406236210,-400.0,0.00024657,3]
[386574873,1758406236220,-400.0,0.00024657,3]
[386574874,1758406236230,-400.0,0.00024657,3]
[386574875,1758406236240,-400.0,0.00024657,3]
[386574876,1758406236251,-400.0,0.00024657,3]
[386574877,1758406236264,-407.06048445,0.00024657,3]
[386574878,1758406236275,-725.53,0.00024657,3]
[386574879,1758406236286,-481.22,0.00024657,3]
[386574880,1758406236296,-400.0,0.00024657,3]
[386574881,1758406236307,-153.980079,0.00024657,3]
[386574882,1758406236317,-400.0,0.00024657,3]
[386574883,1758406236328,-400.0,0.00024657,3]
[386574884,1758406236339,-207.588098,0.00024657,3]
[386574885,1758406236349,-400.0,0.00024657,3]
[386574886,1758406236359,-400.0,0.00024657,3]
[386574887,1758406236369,-400.0,0.00024657,3]
[386574888,1758406236379,-414.5914989,0.00024657,3]
[386574889,1758406236389,-400.0,0.00024657,3]
[386574890,1758406236399,-400.0,0.00024657,3]
[386574891,1758406236409,-400.0,0.00024657,3]
[386574892,1758406236419,-400.0,0.00024657,3]
[386574893,1758406236429,-415.33224227,0.00024657,3]
[386574894,1758406236439,-400.0,0.00024657,3]
[386574895,1758406236448,-400.0,0.00024657,3]
[386574896,1758406236459,-400.0,0.00024657,3]
[386574897,1758406236469,-400.0,0.00024657,3]
[386574898,1758406236479,-529.78,0.00024657,3]
[386574900,1758406236489,-400.0,0.00024657,3]
[386574901,1758406236500,-400.0,0.00024657,3]
[386574902,1758406236510,-400.0,0.00024657,3]
[386574903,1758406236521,-400.0,0.00024657,3]
[386574904,1758406236532,-402.86476316,0.00024657,3]
[386574905,1758406236542,-400.0,0.00024657,3]
[386574906,1758406236552,-400.0,0.00024657,3]
[386574907,1758406236562,-415.54,0.00024657,3]
[386574908,1758406236572,-400.0,0.00024657,3]
[386574909,1758406236582,-400.0,0.00024657,3]
[386574910,1758406236593,-549.06,0.00024657,3]
[386574911,1758406236602,-400.0,0.00024657,3]
[386574912,1758406236613,-400.0,0.00024657,3]
[386574913,1758406236623,-208.45202927,0.00024657,2]
[386574914,1758406236633,-500.0,0.00024657,3]
[386574915,1758406236643,-600.56,0.00024657,3]
[386574916,1758406236653,-500.0,0.00024657,3]
[386574917,1758406236663,-500.0,0.00024657,3]
[386574918,1758406236673,-500.0,0.00024657,3]
[386574920,1758406236683,-500.0,0.00024657,3]
[386574921,1758406236693,-500.0,0.00024657,3]
[386574922,1758406236703,-500.0,0.00024657,3]
[386574923,1758406236713,-405.00951901,0.00024657,3]
[386574924,1758406236728,-500.0,0.00024657,3]
[386574925,1758406236738,-500.0,0.00024657,3]
[386574926,1758406236749,-500.0,0.00024657,3]
[386574927,1758406236760,-1038.02,0.00024657,3]
[386574928,1758406236771,-500.0,0.00024657,3]
[386574929,1758406236781,-500.0,0.00024657,3]
[386574930,1758406236791,-500.0,0.00024657,3]
[386574931,1758406236801,-500.0,0.00024657,3]
[386574932,1758406236812,-500.0,0.00024657,3]
[386574933,1758406236823,-403.152971,0.00024657,3]
[386574934,1758406236834,-500.0,0.00024657,3]
[386574935,1758406236845,-846.47,0.00024657,3]
[386574936,1758406236855,-539.16546456,0.00024657,3]
[386574937,1758406236866,-400.0,0.00024657,3]
[386574938,1758406236876,-460.67790627,0.00024657,3]
[386574939,1758406236887,-400.0,0.00024657,3]
[386574940,1758406236898,-400.0,0.00024657,3]
[386574941,1758406236909,-400.0,0.00024657,3]
[386574942,1758406236919,-400.0,0.00024657,3]
[386574943,1758406236930,-400.0,0.00024657,3]
[386574944,1758406236940,-400.0,0.00024657,3]
[386574945,1758406236951,-400.0,0.00024657,3]
[386574946,1758406236961,-400.0,0.00024657,3]
[386574947,1758406236971,-124.98930845,0.00024657,3]
[386574957,1758406238082,-433.84399218,0.00021211,2]
[386574959,1758406238091,-275.01069155,0.00024657,3]
[386574961,1758406238100,-29.78057141,0.00024657,3]
[386574963,1758406238112,-253.75974854,0.00024657,3]
[386574973,1758406238231,-500.0,0.00021211,2]
[386574975,1758406238241,-236.37495991,0.00021211,2]
[386574976,1758406238250,-152.08748701,0.00021211,2]
[386574978,1758406238260,-260.5842315,0.00021211,2]
[386574980,1758406238270,-116.45968005,0.00024657,3]
[386574982,1758406238279,-400.0,0.00024657,3]
[386574983,1758406238289,-431.7392451,0.00024657,3]
[386574985,1758406238299,-400.0,0.00024657,3]
[386574986,1758406238309,-400.0,0.00024657,3]
[386574988,1758406238318,-400.0,0.00024657,3]
[386574990,1758406238328,-400.0,0.00024657,3]
[386574992,1758406238337,-406.02376895,0.00024657,3]
[386574994,1758406238347,-400.0,0.00024657,3]
[386574995,1758406238356,-400.0,0.00024657,3]
[386574997,1758406238366,-77.51106908,0.00024657,3]
[386574999,1758406238379,-372.47893092,0.00024657,3]
[386575001,1758406238389,-353.79875826,0.00024657,3]
[386575003,1758406238401,-46.20124174,0.00024657,3]
[386575005,1758406238411,-400.0,0.00024657,3]
[386575007,1758406238421,-193.8158739,0.00024657,3]
[386575009,1758406238437,-206.1841261,0.00024657,3]
[386575011,1758406238447,-400.0,0.00024657,3]
[386575013,1758406238456,-400.0,0.00024657,3]
[386575015,1758406238466,-400.0,0.00024657,3]
[386575016,1758406238476,-1245.65,0.00024657,3]
[386575018,1758406238486,-400.0,0.00024657,3]
[386575020,1758406238495,-857.4,0.00024657,3]
[386575022,1758406238505,-400.0,0.00024657,3]
[386575024,1758406238514,-400.0,0.00024657,3]
[386575025,1758406238524,-400.0,0.00024657,3]
[386575027,1758406238534,-481.92,0.00024657,3]
[386575029,1758406238544,-400.0,0.00024657,3]
[386575031,1758406238554,-400.0,0.00024657,3]
[386575033,1758406238563,-400.73847051,0.00024657,3]
[386575035,1758406238573,-400.0,0.00024657,3]
[386575037,1758406238584,-400.0,0.00024657,3]
[386575038,1758406238594,-436.46,0.00024657,3]
[386575040,1758406238604,-400.0,0.00024657,3]
[386575042,1758406238613,-400.0,0.00024657,3]
[386575044,1758406238623,-751.27,0.00024657,3]
[386575046,1758406238632,-400.0,0.00024657,3]
[386575048,1758406238642,-400.0,0.00024657,3]
[386575049,1758406238652,-400.0,0.00024657,3]
[386575051,1758406238662,-772.12,0.00024657,3]
[386575053,1758406238671,-400.0,0.00024657,3]
[386575055,1758406238681,-400.0,0.00024657,3]
[386575057,1758406238691,-400.0,0.00024657,3]
[386575059,1758406238701,-400.0,0.00024657,3]
[386575060,1758406238710,-400.0,0.00024657,3]
[386575062,1758406238720,-400.0,0.00024657,3]
[386575064,1758406238730,-400.0,0.00024657,3]
[386575066,1758406238740,-400.0,0.00024657,3]
[386575068,1758406238749,-400.0,0.00024657,3]
[386575070,1758406238760,-400.0,0.00024657,3]
[386575072,1758406238775,-400.0,0.00024657,3]
[386575074,1758406238784,-732.57,0.00024657,3]
[386575076,1758406238794,-588.59,0.00024657,3]
[386575078,1758406238805,-400.0,0.00024657,3]
[386575079,1758406238816,-424.25,0.00024657,3]
[386575081,1758406238826,-400.0,0.00024657,3]
[386575083,1758406238836,-400.0,0.00024657,3]
[386575085,1758406238846,-874.24,0.00024657,3]
[386575087,1758406238855,-400.0,0.00024657,3]
[386575089,1758406238865,-400.0,0.00024657,3]
[386575091,1758406238875,-426.76,0.00024657,3]
[386575092,1758406238885,-494.80006354,0.00024657,3]
[386575098,1758406238941,-545.5261696,0.00021211,2]
[386575100,1758406238951,-5.19993646,0.00024657,3]
[386575102,1758406238961,-500.0,0.00024657,3]
[386575104,1758406238971,-500.0,0.00024657,3]
[386575106,1758406238981,-500.0,0.00024657,3]
[386575108,1758406238991,-206.52,0.00024657,3]
[386575111,1758406239001,-400.0,0.00024657,3]
[386575112,1758406239011,-400.0,0.00024657,3]
[386575113,1758406239021,-400.0,0.00024657,3]
[386575114,1758406239031,-400.0,0.00024657,3]
[386575115,1758406239042,-430.68,0.00024657,3]
[386575116,1758406239052,-400.0,0.00024657,3]
[386575117,1758406239061,-400.0,0.00024657,3]
[386575118,1758406239072,-400.0,0.00024657,3]
[386575119,1758406239081,-400.0,0.00024657,3]
[386575120,1758406239091,-400.0,0.00024657,3]
[386575121,1758406239102,-400.0,0.00024657,3]
[386575122,1758406239112,-400.0,0.00024657,3]
[386575123,1758406239122,-400.0,0.00024657,3]
[386575124,1758406239135,-400.0,0.00024657,3]
[386575125,1758406239145,-400.0,0.00024657,3]
[386575126,1758406239154,-400.0,0.00024657,3]
[386575128,1758406239164,-400.0,0.00024657,3]
[386575130,1758406239175,-400.0,0.00024657,3]
[386575132,1758406239185,-400.0,0.00024657,3]
[386575135,1758406239195,-400.0,0.00024657,3]
[386575137,1758406239204,-400.0,0.00024657,3]
[386575139,1758406239214,-400.0,0.00024657,3]
[386575141,1758406239223,-400.0,0.00024657,3]
[386575143,1758406239233,-402.28771354,0.00024657,3]
[386575145,1758406239242,-400.0,0.00024657,3]
[386575147,1758406239253,-400.0,0.00024657,3]
[386575149,1758406239266,-400.0,0.00024657,3]
[386575151,1758406239276,-501.84,0.00024657,3]
[386575153,1758406239286,-400.0,0.00024657,3]
[386575155,1758406239296,-400.0,0.00024657,3]
[386575157,1758406239306,-400.0,0.00024657,3]
[386575159,1758406239316,-400.0,0.00024657,3]
[386575161,1758406239326,-400.0,0.00024657,3]
[386575163,1758406239335,-400.0,0.00024657,3]
[386575165,1758406239345,-400.0,0.00024657,3]
[386575167,1758406239354,-1129.75,0.00024657,3]
[386575169,1758406239364,-400.0,0.00024657,3]
[386575171,1758406239373,-400.0,0.00024657,3]
[386575173,1758406239383,-400.0,0.00024657,3]
[386575175,1758406239393,-587.77,0.00024657,3]
[386575177,1758406239403,-400.0,0.00024657,3]
[386575179,1758406239413,-400.0,0.00024657,3]
[386575181,1758406239423,-400.0,0.00024657,3]
[386575183,1758406239432,-400.0,0.00024657,3]
[386575186,1758406239442,-400.0,0.00024657,3]
[386575188,1758406239452,-400.0,0.00024657,3]
[386575190,1758406239461,-400.0,0.00024657,3]
[386575192,1758406239471,-135.60436611,0.00024657,3]
[386575195,1758406239490,-264.39563389,0.00024657,3]
[386575197,1758406239500,-400.0,0.00024657,3]
[386575199,1758406239510,-400.0,0.00024657,3]
[386575201,1758406239520,-400.0,0.00024657,3]
[386575203,1758406239530,-450.78,0.00024657,3]
[386575205,1758406239540,-466.01,0.00024657,3]
[386575207,1758406239550,-434.16,0.00024657,3]
[386575209,1758406239561,-188.16877624,0.00024657,3]
[386575216,1758406239594,-500.0,0.00021211,2]
[386575219,1758406239604,-211.83122376,0.00024657,3]
[386575222,1758406239614,-400.0,0.00024657,3]
[386575225,1758406239624,-81.21928368,0.00024657,3]
[386575234,1758406239668,-318.78071632,0.00024657,3]
[386575238,1758406239678,-442.11,0.00024657,3]
[386575240,1758406239687,-139.01652691,0.00024657,3]
[386575244,1758406239699,-266.92376967,0.00024657,3]
[386575249,1758406239723,-312.63970342,0.00024657,3]
[386575252,1758406239732,-400.0,0.00024657,3]
[386575255,1758406239742,-400.0,0.00024657,3]
[386575258,1758406239752,-400.0,0.00024657,3]
[386575261,1758406239762,-400.0,0.00024657,3]
[386575265,1758406239771,-400.0,0.00024657,3]
[386575268,1758406239781,-157.69159341,0.00024657,3]
[386575271,1758406239790,-400.0,0.00024657,3]
[386575274,1758406239800,-400.0,0.00024657,3]
[386575277,1758406239809,-400.0,0.00024657,3]
[386575280,1758406239819,-769.59,0.00024657,3]
[386575283,1758406239829,-400.0,0.00024657,3]
[386575286,1758406239839,-1283.23,0.00024657,3]
[386575289,1758406239849,-400.0,0.00024657,3]
[386575291,1758406239858,-400.0,0.00024657,3]
[386575294,1758406239868,-400.0,0.00024657,3]
[386575298,1758406239878,-400.0,0.00024657,3]
[386575300,1758406239888,-400.0,0.00024657,3]
[386575303,1758406239898,-403.25298921,0.00024657,3]
[386575306,1758406239908,-400.0,0.00024657,3]
[386575310,1758406239918,-693.75,0.00024657,3]
[386575313,1758406239929,-400.0,0.00024657,3]
[386575316,1758406239938,-400.0,0.00024657,3]
[386575319,1758406239947,-400.0,0.00024657,3]
[386575322,1758406239957,-400.0,0.00024657,3]
[386575324,1758406239967,-400.0,0.00024657,3]
[386575328,1758406239976,-400.0,0.00024657,3]
[386575330,1758406239986,-400.0,0.00024657,3]
[386575334,1758406239996,-1104.59,0.00024657,3]
[386575338,1758406240006,-400.0,0.00024657,3]
[386575341,1758406240016,-453.78569355,0.00024657,3]
[386575344,1758406240025,-1051.8,0.00024657,3]
[386575347,1758406240035,-400.0,0.00024657,3]
[386575350,1758406240044,-400.0,0.00024657,3]
[386575352,1758406240054,-503.80857999,0.00024657,3]
[386575356,1758406240064,-400.0,0.00024657,3]
[386575359,1758406240074,-406.69594289,0.00024657,3]
[386575362,1758406240084,-400.0,0.00024657,3]
[386575365,1758406240093,-548.78,0.00024657,3]
[386575368,1758406240103,-400.0,0.00024657,3]
[386575371,1758406240112,-400.0,0.00024657,3]
[386575374,1758406240122,-801.98,0.00024657,3]
[386575376,1758406240132,-400.0,0.00024657,3]
[386575379,1758406240142,-734.8,0.00024657,3]
[386575382,1758406240152,-400.0,0.00024657,3]
[386575385,1758406240161,-400.0,0.00024657,3]
[386575388,1758406240171,-400.0,0.00024657,3]
[386575391,1758406240181,-400.0,0.00024657,3]
[386575394,1758406240190,-165.120494,0.00024657,3]
[386575397,1758406240200,-400.0,0.00024657,3]
[386575401,1758406240210,-400.0,0.00024657,3]
[386575404,1758406240220,-400.0,0.00024657,3]
[386575406,1758406240229,-1172.57,0.00024657,3]
[386575410,1758406240239,-189.524493,0.00024657,3]
[386575414,1758406240249,-150.069019,0.00024657,3]
[386575417,1758406240263,-400.0,0.00024657,3]
[386575420,1758406240272,-400.0,0.00024657,3]
[386575423,1758406240282,-400.0,0.00024657,2]
[386575426,1758406240291,-400.97,0.00024657,3]
[386575429,1758406240301,-400.0,0.00024657,3]
[386575432,1758406240311,-181.749416,0.00024657,3]
[386575435,1758406240320,-1039.23,0.00024657,3]
[386575438,1758406240330,-400.0,0.00024657,3]
[386575441,1758406240340,-400.0,0.00024657,3]
[386575444,1758406240349,-400.0,0.00024657,3]
[386575447,1758406240359,-406.51000499,0.00024657,3]
[386575450,1758406240368,-158.5137998,0.00024657,3]
[386575452,1758406240378,-1039.23,0.00024657,3]
[386575456,1758406240389,-400.0,0.00024657,3]
[386575520,1758406240680,-400.0,0.00024657,3]
[386575528,1758406240714,-189.524494,0.00024657,3]
[386575531,1758406240724,-400.0,0.00024657,3]
[386575534,1758406240734,-500.0,0.00024657,3]
[386575537,1758406240744,-424.52,0.00024657,3]
[386575540,1758406240753,-539.11,0.00024657,3]
[386575543,1758406240762,-400.0,0.00024657,3]
[386575546,1758406240771,-500.0,0.00024657,3]
[386575549,1758406240781,-150.069019,0.00024657,3]
[386575552,1758406240791,-500.0,0.00024657,3]
[386575555,1758406240802,-500.0,0.00024657,3]
[386575558,1758406240812,-500.0,0.00024657,3]
[386575561,1758406240822,-400.0,0.00024657,3]
[386575564,1758406240831,-400.0,0.00024657,3]
[386575567,1758406240841,-500.0,0.00024657,3]
[386575570,1758406240850,-500.0,0.00024657,3]
[386575573,1758406240860,-500.0,0.00024657,3]
[386575576,1758406240870,-500.0,0.00024657,3]
[386575579,1758406240880,-400.0,0.00024657,3]
[386575583,1758406240889,-400.0,0.00024657,3]
[386575585,1758406240899,-492.9,0.00024657,3]
[386575588,1758406240908,-400.0,0.00024657,3]
[386575592,1758406240917,-1194.71,0.00024657,3]
[386575594,1758406240927,-400.0,0.00024657,3]
[386575598,1758406240936,-400.0,0.00024657,2]
[386575601,1758406240945,-1286.08,0.00024657,3]
[386575604,1758406240957,-492.92,0.00024657,3]
[386575607,1758406240966,-400.0,0.00024657,3]
[386575610,1758406240975,-985.66,0.00024657,3]
[386575613,1758406240984,-400.0,0.00024657,3]
[386575615,1758406240993,-2178.43,0.00024657,3]
[386575617,1758406241003,-400.0,0.00024657,3]
[386575619,1758406241013,-400.0,0.00024657,3]
[386575621,1758406241023,-400.0,0.00024657,3]
[386575623,1758406241032,-408.8,0.00024657,3]
[386575625,1758406241042,-400.0,0.00024657,3]
[386575627,1758406241051,-400.0,0.00024657,3]
[386575629,1758406241060,-400.0,0.00024657,2]
[386575631,1758406241069,-400.69388965,0.00024657,3]
[386575633,1758406241078,-869.66,0.00024657,3]
[386575635,1758406241087,-400.0,0.00024657,3]
[386575637,1758406241097,-400.0,0.00024657,3]
[386575639,1758406241107,-405.76,0.00024657,3]
[386575641,1758406241116,-400.0,0.00024657,3]
[386575643,1758406241126,-400.0,0.00024657,3]
[386575645,1758406241135,-431.45,0.00024657,3]
[386575647,1758406241145,-436.71,0.00024657,3]
[386575649,1758406241154,-819.61,0.00024657,3]
[386575651,1758406241163,-400.0,0.00024657,2]
[386575653,1758406241172,-667.95,0.00024657,3]
[386575655,1758406241182,-400.0,0.00024657,3]
[386575657,1758406241191,-400.0,0.00024657,3]
[386575659,1758406241200,-400.0,0.00024657,3]
[386575661,1758406241210,-927.75,0.00024657,3]
[386575663,1758406241219,-162.104304,0.00024657,3]
[386575665,1758406241228,-390.267542,0.00024657,3]
[386575667,1758406241237,-407.330478,0.00024657,3]
[386575669,1758406241247,-400.0,0.00024657,3]
[386575671,1758406241259,-495.8,0.00024657,3]
[386575673,1758406241267,-400.0,0.00024657,3]
[386575675,1758406241276,-400.0,0.00024657,3]
[386575677,1758406241286,-400.0,0.00024657,3]
[386575679,1758406241295,-400.49120674,0.00024657,3]
[386575681,1758406241305,-1124.07,0.00024657,3]
[386575683,1758406241314,-400.0,0.00024657,3]
[386575685,1758406241324,-151.0,0.00024657,5]
[386575687,1758406241333,-400.0,0.00024657,3]
[386575689,1758406241343,-261.0,0.00024657,5]
[386575691,1758406241352,-400.0,0.00024657,3]
[386575692,1758406241362,-1625.64,0.00024657,3]
[386575694,1758406241371,-643.35,0.00024657,3]
[386575696,1758406241380,-400.0,0.00024657,3]
[386575698,1758406241390,-400.0,0.00024657,3]
[386575701,1758406241399,-400.0,0.00024657,3]
[386575702,1758406241409,-459.51431614,0.00024657,3]
[386575704,1758406241418,-450.17,0.00024657,3]
[386575706,1758406241428,-400.0,0.00024657,3]
[386575708,1758406241437,-400.0,0.00024657,3]
[386575711,1758406241446,-400.0,0.00024657,3]
[386575713,1758406241456,-512.98731904,0.00024657,3]
[386575714,1758406241464,-400.0,0.00024657,3]
[386575716,1758406241474,-1212.62,0.00024657,3]
[386575717,1758406241483,-400.0,0.00024657,3]
[386575718,1758406241492,-400.0,0.00024657,3]
[386575719,1758406241501,-400.0,0.00024657,3]
[386575720,1758406241512,-400.0,0.00024657,3]
[386575721,1758406241521,-1842.49,0.00024657,3]
[386575722,1758406241531,-400.0,0.00024657,3]
[386575723,1758406241540,-400.0,0.00024657,3]
[386575724,1758406241548,-452.79,0.00024657,3]
[386575725,1758406241558,-1405.48,0.00024657,3]
[386575726,1758406241567,-400.0,0.00024657,3]
[386575728,1758406241578,-400.0,0.00024657,3]
[386575730,1758406241587,-648.64,0.00024657,3]
[386575732,1758406241596,-400.0,0.00024657,3]
[386575734,1758406241606,-790.96,0.00024657,3]
[386575736,1758406241615,-468.82,0.00024657,3]
[386575738,1758406241624,-400.0,0.00024657,3]
[386575740,1758406241634,-630.7,0.00024657,3]
[386575742,1758406241643,-782.24,0.00024657,3]
[386575743,1758406241652,-583.03,0.00024657,3]
[386575744,1758406241662,-400.0,0.00024657,3]
[386575745,1758406241671,-400.0,0.00024657,3]
[386575746,1758406241681,-400.0,0.00024657,3]
[386575747,1758406241691,-1486.27,0.00024657,3]
[386575748,1758406241700,-3939.07,0.00024657,3]
[386575749,1758406241710,-1486.27,0.00024657,3]
[386575750,1758406241719,-3939.07,0.00024657,3]
[386575751,1758406241729,-400.0,0.00024657,3]
[386575752,1758406241740,-1486.27,0.00024657,3]
[386575753,1758406241750,-3939.07,0.00024657,3]
[386575754,1758406241760,-400.0,0.00024657,3]
[386575755,1758406241769,-1486.27,0.00024657,3]
[386575756,1758406241781,-3939.07,0.00024657,3]
[386575757,1758406241790,-1486.27,0.00024657,3]
[386575758,1758406241799,-3939.07,0.00024657,3]
[386575759,1758406241809,-1486.27,0.00024657,3]
[386575760,1758406241818,-3939.07,0.00024657,3]
[386575761,1758406241828,-1486.27,0.00024657,3]
[386575762,1758406241838,-3939.07,0.00024657,3]
[386575763,1758406241847,-1486.27,0.00024657,3]
[386575765,1758406241856,-151.0,0.00024657,7]
[386575767,1758406241866,-3939.07,0.00024657,3]
[386575769,1758406241875,-3939.07,0.00024657,3]
[386575771,1758406241884,-1486.27,0.00024657,3]
[386575773,1758406241894,-1484.65,0.00024657,3]
[386575775,1758406241903,-1486.27,0.00024657,3]
[386575777,1758406241913,-3939.07,0.00024657,3]
[386575779,1758406241922,-1486.27,0.00024657,3]
[386575781,1758406241931,-3939.07,0.00024657,3]
[386575783,1758406241940,-1486.27,0.00024657,3]
[386575785,1758406241951,-3939.07,0.00024657,3]
[386575787,1758406241960,-400.0,0.00024657,3]
[386575789,1758406241969,-400.0,0.00024657,3]
[386575791,1758406241979,-400.0,0.00024657,3]
[386575793,1758406241987,-3939.07,0.00024657,3]
[386575795,1758406241997,-400.0,0.00024657,3]
[386575797,1758406242006,-1486.27,0.00024657,3]
[386575799,1758406242015,-1486.27,0.00024657,3]
[386575801,1758406242024,-3939.07,0.00024657,3]
[386575803,1758406242034,-400.0,0.00024657,3]
[386575805,1758406242043,-3939.07,0.00024657,3]
[386575807,1758406242053,-854.75084665,0.00024657,3]
[386576216,1758406246007,-898.0,0.00021643,2]
[386576218,1758406246016,-500.0,0.00023836,2]
[386576220,1758406246025,-150.0,0.00023836,2]
[386576221,1758406246035,-500.0,0.0002411,2]
[386576222,1758406246043,-500.0,0.00024384,2]
[386576223,1758406246053,-898.0,0.00024643,2]
[386576224,1758406246062,-631.51915335,0.00024657,3]
[386576225,1758406246071,-3939.07,0.00024657,3]
[386576226,1758406246080,-1486.27,0.00024657,3]
[386576227,1758406246089,-3939.07,0.00024657,3]
[386576228,1758406246099,-1702.86,0.00024657,2]
[386576230,1758406246108,-1486.27,0.00024657,3]
[386576232,1758406246117,-3939.07,0.00024657,3]
[386576234,1758406246127,-1702.86,0.00024657,2]
[386576236,1758406246136,-1486.27,0.00024657,3]
[386576238,1758406246146,-3939.07,0.00024657,3]
[386576240,1758406246157,-1702.86,0.00024657,2]
[386576242,1758406246166,-1486.27,0.00024657,3]
[386576244,1758406246175,-3939.07,0.00024657,3]
[386576246,1758406246184,-1486.27,0.00024657,3]
[386576248,1758406246193,-3939.07,0.00024657,3]
[386576250,1758406246202,-1486.27,0.00024657,3]
[386576252,1758406246211,-1702.86,0.00024657,2]
[386576254,1758406246221,-3939.07,0.00024657,3]
[386576256,1758406246230,-400.0,0.00024657,3]
[386576258,1758406246239,-1486.27,0.00024657,3]
[386576260,1758406246248,-1702.86,0.00024657,2]
[386576261,1758406246257,-3939.07,0.00024657,3]